fUST/lending_fUST_20250509
["ID","MTS","AMOUNT","RATE_DAILY","PERIOD"]
[360298080,1746724245599,-500.0,0.00013699,2]
[360298081,1746724245610,-151.0,0.00013699,2]
[360298082,1746724245620,-151.0,0.00013699,2]
[360298083,1746724245630,-151.85770917,0.00013699,2]
[360298084,1746724245639,-500.0,0.00013699,2]
[360298085,1746724245650,-201.13381082,0.00013699,2]
[360298086,1746724245662,-500.0,0.00013699,2]
[360298087,1746724245673,-500.0,0.00013699,2]
[360298088,1746724245683,-500.0,0.00013699,2]
[360298089,1746724245693,-169.13940152,0.00013699,2]
[360298090,1746724245703,-151.0,0.00013699,2]
[360298091,1746724245713,-2103.6,0.000137,2]
[360298092,1746724245724,-2000.0,0.000137,2]
[360298093,1746724245735,-151.0,0.00013726,2]
[360298094,1746724245744,-183.14845,0.00013726,2]
[360298095,1746724245754,-151.149082,0.00013726,2]
[360298096,1746724245763,-151.149082,0.00013726,2]
[360298097,1746724245773,-151.0,0.00013726,2]
[360298098,1746724245783,-500.0,0.00013726,2]
[360298099,1746724245792,-151.0,0.00013726,2]
[360298100,1746724245803,-500.0,0.00013726,2]
[360298101,1746724245812,-500.0,0.00013726,2]
[360298102,1746724245822,-500.0,0.00013726,2]
[360298103,1746724245831,-151.0,0.00013726,2]
[360298104,1746724245841,-500.0,0.00013726,2]
[360298105,1746724245851,-500.0,0.00013726,2]
[360298106,1746724245860,-500.0,0.00013726,2]
[360298107,1746724245870,-500.0,0.00013726,2]
[360298108,1746724245880,-151.0,0.00013726,2]
[360298109,1746724245890,-188.9705947,0.00013726,2]
[360298110,1746724245900,-151.0,0.00013726,2]
[360298111,1746724245910,-500.0,0.00013726,2]
[360298112,1746724245920,-151.0,0.00013726,2]
[360298113,1746724245930,-500.0,0.00013726,2]
[360298114,1746724245939,-500.0,0.00013726,2]
[360298115,1746724245948,-627.52818969,0.00013726,2]
[360298116,1746724245958,-151.0,0.00013726,2]
[360298117,1746724245967,-500.0,0.00013726,2]
[360298118,1746724245977,-500.0,0.00013726,2]
[360298119,1746724245988,-500.0,0.00013726,2]
[360298120,1746724245998,-500.0,0.00013726,2]
[360298121,1746724246007,-151.0,0.00013726,2]
[360298122,1746724246019,-413.13008994,0.00013754,2]
[360298124,1746724246028,-500.0,0.00013754,2]
[360298126,1746724246037,-221.3745622,0.00013754,2]
[360298127,1746724246047,-151.0,0.00013754,2]
[360298128,1746724246056,-500.0,0.00013754,2]
[360298129,1746724246066,-500.0,0.00013754,2]
[360298131,1746724246076,-500.0,0.00013754,2]
[360298132,1746724246085,-500.0,0.00013754,2]
[360298133,1746724246094,-152.28966148,0.00013754,2]
[360298134,1746724246103,-156.34442737,0.00013754,2]
[360298135,1746724246112,-500.0,0.00013754,2]
[360298136,1746724246121,-151.0,0.00013754,2]
[360298137,1746724246131,-615.98048444,0.00013754,2]
[360298138,1746724246140,-500.0,0.00013754,2]
[360298139,1746724246151,-260.55847745,0.00013754,2]
[360298140,1746724246162,-164.75865955,0.00013754,2]
[360298141,1746724246171,-500.0,0.00013754,2]
[360298142,1746724246180,-583.84615895,0.00013754,2]
[360298144,1746724246190,-500.0,0.00013754,2]
[360298145,1746724246199,-241.78637063,0.00013754,2]
[360298146,1746724246208,-151.0,0.00013754,2]
[360298147,1746724246218,-178.035568,0.00013754,2]
[360298148,1746724246227,-178.035568,0.00013754,2]
[360298149,1746724246237,-500.0,0.0001378,2]
[360298151,1746724246247,-5880.43895011,0.00013781,2]
[360298153,1746724246256,-151.0,0.00013781,2]
[360298155,1746724246266,-151.0,0.00013781,2]
[360298157,1746724246276,-173.863912,0.00013781,2]
[360298159,1746724246285,-500.0,0.00013781,2]
[360298161,1746724246295,-156.44511701,0.00013781,2]
[360298163,1746724246305,-516.22655662,0.00013781,2]
[360298165,1746724246314,-500.0,0.00013781,2]
[360298167,1746724246324,-500.0,0.00013781,2]
[360298169,1746724246333,-500.0,0.00013781,2]
[360298171,1746724246342,-500.0,0.00013781,2]
[360298173,1746724246352,-201.39962805,0.00013781,2]
[360298175,1746724246361,-500.0,0.00013781,2]
[360298177,1746724246371,-500.0,0.00013781,2]
[360298179,1746724246380,-500.0,0.00013781,2]
[360298182,1746724246393,-12500.0,0.00013791,2]
[360298184,1746724246402,-151.0,0.00013791,2]
[360298186,1746724246412,-151.0,0.00013791,2]
[360298188,1746724246422,-151.0,0.00013791,2]
[360298190,1746724246433,-151.0,0.00013791,2]
[360298192,1746724246442,-151.149082,0.00013799,2]
[360298194,1746724246451,-151.149082,0.00013799,2]
[360298196,1746724246460,-500.0,0.00013799,2]
[360298198,1746724246470,-178.035568,0.00013799,2]
[360298200,1746724246480,-178.035568,0.00013799,2]
[360298202,1746724246493,-12500.0,0.00013799,2]
[360298204,1746724246502,-196.86132112,0.00013807,2]
[360298206,1746724246512,-151.0,0.00013808,2]
[360298208,1746724246522,-217.016034,0.00013808,2]
[360298210,1746724246532,-151.0,0.00013808,2]
[360298212,1746724246542,-151.0,0.00013808,2]
[360298214,1746724246551,-12500.0,0.00013808,2]
[360298216,1746724246562,-500.0,0.00013809,2]
[360298218,1746724246572,-500.0,0.00013809,2]
[360298221,1746724246582,-500.0,0.00013809,2]
[360298223,1746724246592,-500.0,0.00013809,2]
[360298225,1746724246602,-500.0,0.00013809,2]
[360298227,1746724246611,-500.0,0.00013809,2]
[360298228,1746724246621,-206.17406382,0.00013809,2]
[360298229,1746724246631,-204.3789841,0.00013809,2]
[360298231,1746724246641,-12500.0,0.00013817,2]
[360298233,1746724246651,-151.0,0.00013817,2]
[360298235,1746724246662,-151.0,0.00013817,2]
[360298236,1746724246671,-151.0,0.00013817,2]
[360298239,1746724246681,-151.0,0.00013817,2]
[360298240,1746724246691,-367.056551,0.00013836,2]
[360298243,1746724246701,-500.0,0.00013836,2]
[360298245,1746724246711,-500.0,0.00013836,2]
[360298247,1746724246721,-500.0,0.00013836,2]
[360298249,1746724246731,-500.0,0.00013836,2]
[360298251,1746724246741,-500.0,0.00013836,2]
[360298253,1746724246750,-587.0,0.00013836,2]
[360298254,1746724246760,-500.0,0.00013863,2]
[360298255,1746724246769,-500.0,0.00013863,2]
[360298256,1746724246779,-500.0,0.00013863,2]
[360298257,1746724246789,-500.0,0.00013863,2]
[360298259,1746724246798,-500.0,0.00013863,2]
[360298260,1746724246807,-178.035568,0.00013865,2]
[360298261,1746724246817,-178.035568,0.00013865,2]
[360298262,1746724246826,-6946.72220978,0.00013866,2]
[360298263,1746724246836,-500.0,0.00013891,2]
[360298264,1746724246846,-500.0,0.00013891,2]
[360298265,1746724246855,-434.73739196,0.00013891,2]
[360298266,1746724246865,-509.6205979,0.00013891,2]
[360298269,1746724247025,-500.0,0.00013891,2]
[360298270,1746724247037,-151.149082,0.00013918,2]
[360298271,1746724247047,-151.149082,0.00013918,2]
[360298272,1746724247056,-500.0,0.00013918,2]
[360298273,1746724247066,-500.0,0.00013918,2]
[360298274,1746724247076,-500.0,0.00013918,2]
[360298275,1746724247085,-151.0,0.00013936,2]
[360298276,1746724247095,-400.0,0.00013936,2]
[360298277,1746724247105,-524.6,0.00013936,2]
[360298278,1746724247115,-652.78,0.00013936,2]
[360298279,1746724247124,-400.0,0.00013936,2]
[360298280,1746724247134,-1429.39,0.00013936,2]
[360298281,1746724247143,-500.0,0.00013946,2]
[360298282,1746724247152,-500.0,0.00013946,2]
[360298283,1746724247161,-500.0,0.00013946,2]
[360298284,1746724247171,-400.0,0.00013958,2]
[360298285,1746724247180,-400.0,0.00013958,2]
[360298286,1746724247190,-2919.79,0.00013958,2]
[360298287,1746724247200,-549.11002744,0.00013958,2]
[360298288,1746724247364,-87.35997256,0.00013958,2]
[360298289,1746724247374,-400.0,0.00013958,2]
[360298290,1746724247384,-400.0,0.00013961,2]
[360298291,1746724247394,-171.15448337,0.00013961,2]
[360298292,1746724247404,-400.0,0.00013961,2]
[360298293,1746724247414,-400.0,0.00013961,2]
[360298294,1746724247424,-151.0,0.00013964,2]
[360298295,1746724247433,-500.0,0.00013973,2]
[360298296,1746724247443,-500.0,0.00013973,2]
[360298297,1746724247453,-500.0,0.00013973,2]
[360298298,1746724247462,-500.0,0.00013973,2]
[360298299,1746724247471,-500.0,0.00013973,2]
[360298300,1746724247481,-151.0,0.00013973,2]
[360298301,1746724247491,-273.299457,0.00013973,2]
[360298302,1746724247500,-278.374836,0.00013973,2]
[360298303,1746724247510,-160.0,0.00013998,2]
[360298304,1746724247519,-160.0,0.00013999,2]
[360298305,1746724247528,-160.0,0.00013999,2]
[360298306,1746724247537,-151.0,0.00013999,2]
[360298307,1746724247546,-151.0,0.00013999,2]
[360298308,1746724247555,-45466.61932373,0.00014,7]
[360298309,1746724247564,-151.0,0.00014,2]
[360298310,1746724247574,-151.149082,0.00014,2]
[360298311,1746724247583,-151.149082,0.00014,2]
[360298312,1746724247592,-151.0,0.00014,2]
[360298313,1746724247601,-366.58139114,0.00014,2]
[360298314,1746724247611,-171.496,0.00014,2]
[360298315,1746724247620,-151.0,0.00014,2]
[360298316,1746724247629,-161.854308,0.00014,2]
[360298317,1746724247638,-201.60254632,0.00014,2]
[360298318,1746724247647,-212.10144473,0.00014,7]
[360298319,1746724247661,-178.035568,0.00014,2]
[360298320,1746724247670,-178.035568,0.00014,2]
[360298321,1746724247679,-500.0,0.00014,2]
[360298322,1746724247688,-500.0,0.00014,2]
[360298323,1746724247698,-331.3662049,0.00014,2]
[360298324,1746724247707,-341.44810216,0.00014028,2]
[360298325,1746724247717,-500.0,0.00014028,2]
[360298326,1746724247726,-323.0854952,0.00014032,2]
[360298327,1746724247738,-157.7606797,0.00014032,2]
[360298328,1746724247747,-157.7606797,0.00014032,2]
[360298329,1746724247757,-157.7606797,0.00014032,2]
[360298330,1746724247767,-500.0,0.00014055,2]
[360298331,1746724247776,-500.0,0.00014083,2]
[360298332,1746724247785,-941.35887624,0.00014107,2]
[360298333,1746724247797,-6005.36333354,0.00014107,2]
[360298334,1746724247806,-151.0,0.0001411,2]
[360298335,1746724247816,-151.0,0.000142,2]
[360298336,1746724247825,-400.0,0.0001421,2]
[360298337,1746724247835,-524.6,0.0001421,2]
[360298338,1746724247845,-652.78,0.0001421,2]
[360298339,1746724247854,-400.0,0.0001421,2]
[360298340,1746724247874,-1429.39,0.0001421,2]
[360298341,1746724247885,-400.0,0.00014232,2]
[360298342,1746724247895,-400.0,0.00014232,2]
[360298343,1746724247907,-2919.79,0.00014232,2]
[360298344,1746724247917,-636.47,0.00014232,2]
[360298345,1746724247927,-400.0,0.00014232,2]
[360298346,1746724247937,-400.0,0.00014235,2]
[360298347,1746724247947,-188.36,0.00014235,2]
[360298348,1746724247958,-400.0,0.00014235,2]
[360298349,1746724247967,-386.34563885,0.00014238,2]
[360298350,1746724247978,-650.6482645,0.00014247,2]
[360298351,1746724247988,-500.0,0.000143,2]
[360298352,1746724247998,-500.0,0.000143,2]
[360298353,1746724248007,-500.0,0.000143,2]
[360298354,1746724248017,-500.0,0.000143,2]
[360298355,1746724248028,-500.0,0.000143,2]
[360298356,1746724248037,-500.0,0.000143,2]
[360298357,1746724248047,-500.0,0.000143,2]
[360298358,1746724248058,-630.69370265,0.000143,2]
[360298359,1746724248068,-500.0,0.00014319,2]
[360298360,1746724248079,-500.0,0.00014326,2]
[360298361,1746724248090,-500.0,0.00014326,2]
[360298362,1746724248100,-500.0,0.00014326,2]
[360298363,1746724248109,-500.0,0.00014326,2]
[360298364,1746724248119,-500.0,0.00014326,2]
[360298365,1746724248130,-503.4505207,0.00014326,2]
[360298366,1746724248140,-500.0,0.00014326,2]
[360298367,1746724248150,-500.0,0.00014326,2]
[360298368,1746724248161,-500.0,0.00014326,2]
[360298369,1746724248171,-500.0,0.00014326,2]
[360298370,1746724248182,-500.0,0.00014326,2]
[360298371,1746724248192,-500.0,0.00014326,2]
[360298372,1746724248202,-500.0,0.00014338,2]
[360298373,1746724248212,-500.0,0.00014341,2]
[360298374,1746724248222,-530.62090987,0.00014341,2]
[360298375,1746724248232,-500.0,0.00014341,2]
[360298376,1746724248243,-500.0,0.00014341,2]
[360298377,1746724248253,-500.0,0.00014341,2]
[360298378,1746724248263,-500.0,0.00014341,2]
[360298379,1746724248273,-500.0,0.00014341,2]
[360298380,1746724248283,-501.58728843,0.00014341,2]
[360298381,1746724248293,-178.035568,0.00014348,2]
[360298382,1746724248303,-178.035561,0.00014348,2]
[360298383,1746724248314,-6946.72220978,0.00014348,2]
[360298384,1746724248324,-400.0,0.00014484,2]
[360298385,1746724248335,-524.6,0.00014484,2]
[360298386,1746724248345,-652.78,0.00014484,2]
[360298387,1746724248356,-485.54,0.00014484,2]
[360298388,1746724248366,-1429.39,0.00014484,2]
[360298389,1746724248375,-541.9029668,0.000145,2]
[360298390,1746724248385,-151.0,0.000145,2]
[360298391,1746724248396,-151.0,0.000145,2]
[360298392,1746724248406,-400.0,0.00014506,2]
[360298393,1746724248416,-451.43,0.00014506,2]
[360298394,1746724248426,-2919.79,0.00014506,2]
[360298395,1746724248436,-636.47,0.00014506,2]
[360298396,1746724248448,-400.0,0.00014506,2]
[360298397,1746724248458,-400.0,0.00014509,2]
[360298398,1746724248468,-400.0,0.00014509,2]
[360298399,1746724248478,-151.149082,0.00014511,2]
[360298400,1746724248490,-151.149082,0.00014511,2]
[360298401,1746724248500,-6946.72220978,0.0001459,2]
[360298402,1746724248511,-2000.0,0.000147,2]
[360298403,1746724248522,-151.0,0.000147,2]
[360298404,1746724248532,-151.0,0.00014758,2]
[360298405,1746724248543,-400.0,0.00014758,2]
[360298406,1746724248553,-524.6,0.00014758,2]
[360298407,1746724248563,-652.78,0.00014758,2]
[360298408,1746724248572,-1429.39,0.00014758,2]
[360298409,1746724248582,-400.0,0.0001478,2]
[360298410,1746724248592,-2919.79,0.0001478,2]
[360298411,1746724248602,-636.47,0.0001478,2]
[360298412,1746724248612,-400.0,0.0001478,2]
[360298413,1746724248622,-400.0,0.00014783,2]
[360298414,1746724248632,-400.0,0.00014783,2]
[360298415,1746724248642,-151.0,0.000148,2]
[360298416,1746724248654,-48653.71166572,0.0001483,3]
[360298417,1746724248665,-191850.32821653,0.0001483,2]
[360298418,1746724248675,-6946.72220978,0.00014831,2]
[360298419,1746724248685,-8334.29931079,0.0001485,2]
[360298420,1746724248696,-500.0,0.00014873,2]
[360298421,1746724248706,-500.0,0.00014873,2]
[360298422,1746724248716,-500.0,0.00014873,2]
[360298423,1746724248725,-500.0,0.00014873,2]
[360298424,1746724248737,-500.0,0.00014873,2]
[360298425,1746724248748,-500.0,0.00014873,2]
[360298426,1746724248758,-500.0,0.00014873,2]
[360298427,1746724248767,-500.0,0.00014873,2]
[360298428,1746724248777,-500.0,0.00014873,2]
[360298429,1746724248786,-591.81383082,0.00014873,2]
[360298430,1746724248796,-500.0,0.00014873,2]
[360298431,1746724248806,-165.94346086,0.00014873,2]
[360298432,1746724248816,-500.0,0.00014873,2]
[360298433,1746724248827,-513.19066119,0.00014873,2]
[360298434,1746724248837,-516.79939841,0.00014873,2]
[360298435,1746724248847,-500.0,0.00014873,2]
[360298436,1746724248857,-500.0,0.00014873,2]
[360298437,1746724248867,-500.84854262,0.00014873,2]
[360298438,1746724248877,-500.0,0.00014873,2]
[360298439,1746724248887,-500.0,0.00014873,2]
[360298440,1746724248897,-500.0,0.00014873,2]
[360298441,1746724248907,-500.0,0.00014873,2]
[360298442,1746724248919,-500.0,0.00014873,2]
[360298443,1746724248930,-500.0,0.00014873,2]
[360298444,1746724248942,-506.37854271,0.00014873,2]
[360298445,1746724248952,-151.96932496,0.00014873,2]
[360298446,1746724248963,-500.0,0.00014873,2]
[360298447,1746724248973,-500.0,0.00014873,2]
[360298448,1746724248984,-500.0,0.00014873,2]
[360298449,1746724248994,-500.0,0.00014873,2]
[360298450,1746724249004,-555.18657081,0.00014873,2]
[360298451,1746724249014,-521.44396898,0.00014873,2]
[360298452,1746724249025,-500.0,0.00014873,2]
[360298453,1746724249035,-500.0,0.00014873,2]
[360298454,1746724249045,-574.39123317,0.000149,2]
[360298455,1746724249055,-163.72385429,0.000149,2]
[360298456,1746724249065,-1425.1939516,0.00014924,2]
[360298457,1746724249075,-500.0,0.00014973,2]
[360298458,1746724249085,-500.0,0.00014973,2]
[360298459,1746724249095,-500.0,0.00014973,2]
[360298460,1746724249105,-500.0,0.00014973,2]
[360298461,1746724249115,-500.0,0.00014973,2]
[360298462,1746724249124,-500.0,0.00014973,2]
[360298463,1746724249134,-500.0,0.00014973,2]
[360298464,1746724249144,-160.0,0.00014989,2]
[360298465,1746724249153,-30650.37434891,0.0001499,2]
[360298466,1746724249167,-672.41303275,0.0001499,2]
[360298467,1746724249577,-500.0,0.00011469,2]
[360298468,1746724249586,-178.94666072,0.00011469,2]
[360298469,1746724249596,-500.0,0.00011491,2]
[360298470,1746724249605,-500.0,0.00011491,2]
[360298471,1746724249615,-322.67462199,0.00011491,2]
[360298472,1746724249624,-160.0,0.00011619,2]
[360298473,1746724249634,-842.21467215,0.0001258,2]
[360298474,1746724249644,-151.0,0.00013699,2]
[360298475,1746724249655,-187.96225822,0.00013726,2]
[360298476,1746724249666,-20884.13261834,0.0001499,2]
[360298477,1746724249675,-151.149082,0.0001499,2]
[360298478,1746724249685,-151.149082,0.0001499,2]
[360298479,1746724249694,-212.10144473,0.0001499,3]
[360298480,1746724249704,-160.0,0.00014999,2]
[360298481,1746724249714,-43180.64314295,0.00015,2]
[360298482,1746724249752,-4695.43823458,0.00015,2]
[360298492,1746724693576,200.0,0.00020952,120]
[360298493,1746724704701,10000.0,0.00014,30]
[360298494,1746724718512,10000.0,0.00014,30]
[360298495,1746724735028,10000.0,0.00014,30]
[360298498,1746724753563,10000.0,0.00014,30]
[360298501,1746724779775,172.0,0.00014,30]
[360298502,1746724810003,9800.0,0.00014,30]
[360298593,1746725431785,-570.0,0.00011,2]
[360298595,1746725431795,-250.0,0.00011294,2]
[360298597,1746725431805,-155.91146256,0.00011368,2]
[360298599,1746725431815,-289.75904164,0.00011944,2]
[360298601,1746725431825,-160.0,0.00011944,2]
[360298603,1746725431835,-300.0,0.0001216,2]
[360298604,1746725431844,-1200.0,0.0001216,2]
[360298606,1746725431853,-300.0,0.0001216,2]
[360298608,1746725431863,-299.0,0.0001216,2]
[360298610,1746725431872,-162.93171429,0.0001216,2]
[360298613,1746725431885,-137.06828571,0.0001216,2]
[360298615,1746725431895,-684.36,0.00012161,2]
[360298617,1746725431904,-400.0,0.00012161,2]
[360298619,1746725431914,-400.0,0.00012161,2]
[360298621,1746725431923,-169.23341492,0.00012161,2]
[360298625,1746725431956,-230.76658508,0.00012161,2]
[360298627,1746725431967,-655.13,0.00012161,2]
[360298629,1746725431976,-510.91129182,0.00012161,2]
[360298631,1746725431985,-500.0,0.00012161,2]
[360298633,1746725431995,-500.0,0.00012161,2]
[360298635,1746725432006,-500.0,0.00012161,2]
[360298637,1746725432019,-170.66219384,0.00012161,2]
[360298639,1746725432028,-500.0,0.00012161,2]
[360298641,1746725432038,-465.27381227,0.00012161,2]
[360298643,1746725432047,-500.0,0.00012161,2]
[360298645,1746725432059,-500.0,0.00012161,2]
[360298647,1746725432068,-500.0,0.00012161,2]
[360298649,1746725432077,-500.0,0.00012161,2]
[360298651,1746725432087,-500.0,0.00012161,2]
[360298653,1746725432097,-500.0,0.00012161,2]
[360298655,1746725432106,-500.0,0.00012161,2]
[360298657,1746725432116,-500.0,0.00012161,2]
[360298659,1746725432125,-500.0,0.00012161,2]
[360298661,1746725432134,-500.0,0.00012161,2]
[360298662,1746725432144,-500.0,0.00012161,2]
[360298665,1746725432153,-500.0,0.00012161,2]
[360298667,1746725432163,-500.0,0.00012161,2]
[360298669,1746725432172,-500.0,0.00012161,2]
[360298670,1746725432182,-500.0,0.00012161,2]
[360298673,1746725432194,-500.0,0.00012161,2]
[360298674,1746725432204,-500.0,0.00012161,2]
[360298676,1746725432213,-305.20884859,0.00012161,2]
[360298678,1746725432222,-500.0,0.00012161,2]
[360298680,1746725432232,-500.0,0.00012161,2]
[360298682,1746725432241,-500.0,0.00012161,2]
[360298684,1746725432252,-500.0,0.00012161,2]
[360298686,1746725432262,-500.0,0.00012161,2]
[360298688,1746725432271,-500.0,0.00012161,2]
[360298690,1746725432280,-500.0,0.00012161,2]
[360298692,1746725432289,-500.0,0.00012161,2]
[360298694,1746725432299,-500.0,0.00012161,2]
[360298696,1746725432308,-500.0,0.00012161,2]
[360298698,1746725432318,-500.0,0.00012161,2]
[360298700,1746725432327,-500.0,0.00012161,2]
[360298702,1746725432336,-500.0,0.00012161,2]
[360298704,1746725432346,-500.0,0.00012161,2]
[360298706,1746725432356,-500.0,0.00012161,2]
[360298708,1746725432365,-500.0,0.00012161,2]
[360298710,1746725432375,-500.0,0.00012161,2]
[360298712,1746725432384,-500.0,0.00012161,2]
[360298714,1746725432394,-500.0,0.00012161,2]
[360298716,1746725432403,-500.0,0.00012161,2]
[360298718,1746725432415,-500.0,0.00012161,2]
[360298719,1746725432425,-500.0,0.00012161,2]
[360298721,1746725432434,-253.8440226,0.00012161,2]
[360298723,1746725432444,-500.0,0.00012161,2]
[360298725,1746725432453,-500.0,0.00012161,2]
[360298727,1746725432463,-500.0,0.00012161,2]
[360298728,1746725432472,-183.92462001,0.00012161,2]
[360298730,1746725432481,-500.0,0.00012161,2]
[360298732,1746725432491,-500.0,0.00012161,2]
[360298734,1746725432501,-500.0,0.00012161,2]
[360298736,1746725432511,-500.0,0.00012161,2]
[360298737,1746725432520,-500.0,0.00012161,2]
[360298738,1746725432529,-500.0,0.00012161,2]
[360298739,1746725432539,-500.0,0.00012161,2]
[360298740,1746725432548,-500.0,0.00012161,2]
[360298741,1746725432557,-500.0,0.00012161,2]
[360298742,1746725432566,-500.0,0.00012161,2]
[360298743,1746725432576,-400.0,0.00012161,2]
[360298744,1746725432586,-500.0,0.00012161,2]
[360298745,1746725432595,-500.0,0.00012161,2]
[360298746,1746725432605,-500.0,0.00012161,2]
[360298747,1746725432614,-500.0,0.00012161,2]
[360298748,1746725432624,-500.0,0.00012161,2]
[360298749,1746725432633,-500.0,0.00012161,2]
[360298750,1746725432643,-500.0,0.00012161,2]
[360298751,1746725432652,-500.0,0.00012161,2]
[360298752,1746725432661,-500.0,0.00012161,2]
[360298753,1746725432671,-366.73875054,0.00012161,2]
[360298754,1746725432680,-500.0,0.00012161,2]
[360298755,1746725432690,-500.0,0.00012161,2]
[360298756,1746725432700,-500.0,0.00012161,2]
[360298757,1746725432709,-500.0,0.00012161,2]
[360298758,1746725432720,-500.0,0.00012161,2]
[360298759,1746725432730,-500.0,0.00012161,2]
[360298760,1746725432741,-500.0,0.00012161,2]
[360298761,1746725432753,-482.15228594,0.00012161,2]
[360298762,1746725432762,-994.5,0.00012161,2]
[360298763,1746725432771,-400.0,0.00012164,2]
[360298764,1746725432781,-771.44606713,0.00012164,2]
[360298765,1746725432794,-566.79393287,0.00012164,2]
[360298766,1746725432804,-400.0,0.00012164,2]
[360298767,1746725432813,-400.0,0.00012164,2]
[360298768,1746725432823,-160.0,0.00012165,2]
[360298769,1746725432832,-422.07246323,0.00012165,2]
[360298770,1746725432841,-160.0,0.00012165,2]
[360298771,1746725432851,-160.0,0.00012165,2]
[360298772,1746725432861,-160.0,0.00012165,2]
[360298773,1746725432871,-212.10144473,0.00012165,2]
[360298774,1746725432880,-160.0,0.00012165,2]
[360298775,1746725432890,-12615.23506105,0.00012165,2]
[360298776,1746725432900,-842.21467215,0.00012165,2]
[360298777,1746725432910,-151.0,0.00012166,2]
[360298778,1746725432919,-400.0,0.00012166,2]
[360298779,1746725432928,-400.0,0.00012166,2]
[360298780,1746725432938,-400.0,0.00012166,2]
[360298781,1746725432948,-442.50928296,0.00012167,2]
[360298782,1746725432958,-400.0,0.00012167,2]
[360298783,1746725432968,-151.0,0.00012183,2]
[360298784,1746725432978,-500.81257379,0.000122,2]
[360298785,1746725432990,-500.0,0.00012217,2]
[360298786,1746725433001,-500.0,0.00012217,2]
[360298787,1746725433012,-500.0,0.00012217,2]
[360298788,1746725433026,-443.13375754,0.00012217,2]
[360298789,1746725433036,-500.0,0.00012243,2]
[360298790,1746725433045,-500.0,0.00012243,2]
[360298791,1746725433055,-4458.3022082,0.00012268,2]
[360298792,1746725433067,-739.89,0.00012329,2]
[360298793,1746725433078,-616.58,0.00012329,2]
[360298794,1746725433088,-513.82,0.00012329,2]
[360298795,1746725433099,-428.18,0.00012329,2]
[360298796,1746725433110,-356.82,0.00012329,2]
[360298797,1746725433120,-297.35,0.00012329,2]
[360298798,1746725433131,-247.79,0.00012329,2]
[360298799,1746725433141,-206.49,0.00012329,2]
[360298800,1746725433151,-172.07,0.00012329,2]
[360298801,1746725433161,-860.4,0.00012329,2]
[360298802,1746725433171,-151.0,0.00012329,2]
[360298803,1746725433180,-310.08691503,0.00012382,2]
[360298804,1746725433190,-500.0,0.000124,2]
[360298805,1746725433201,-684.36,0.00012435,2]
[360298806,1746725433211,-400.0,0.00012435,2]
[360298807,1746725433221,-400.0,0.00012435,2]
[360298808,1746725433231,-400.0,0.00012435,2]
[360298809,1746725433241,-655.13,0.00012435,2]
[360298810,1746725433253,-400.0,0.00012438,2]
[360298811,1746725433264,-1338.24,0.00012438,2]
[360298812,1746725433274,-400.0,0.00012438,2]